bitfinex-derivatives/quotes_BTCF0:USTF0_20250930
["timestamp","ask_amount","ask_price","bid_price","bid_amount"]
[1759237828809,0.53406581,113140.0,113130.0,1.12224596]
[1759237829000,0.11457994,113140.0,113130.0,1.12224596]
[1759237829205,0.53406581,113140.0,113130.0,1.12224596]
[1759237829401,0.95355168,113140.0,113130.0,0.3243246]
[1759237829614,0.95355168,113140.0,113130.0,0.3247246]
[1759237832112,0.95355168,113140.0,113130.0,0.3243246]
[1759237832312,0.95355168,113140.0,113130.0,0.1247246]
[1759237833715,1.04189848,113140.0,113130.0,0.1247246]
[1759237833915,1.77171168,113140.0,113130.0,0.54421047]
[1759237834816,1.86005848,113140.0,113130.0,0.1247246]
[1759237835110,1.86005848,113140.0,113130.0,0.54421047]
[1759237835315,1.04189848,113140.0,113130.0,0.54421047]
[1759237835508,0.53406581,113140.0,113130.0,0.54421047]
[1759237835709,1.77143168,113140.0,113130.0,0.54421047]
[1759237836014,1.35194581,113140.0,113130.0,0.54421047]
[1759237836416,1.35178581,113140.0,113130.0,0.54421047]
[1759237837219,0.93229994,113140.0,113130.0,0.54421047]
[1759237837420,1.35178581,113140.0,113130.0,0.1247246]
[1759237837613,1.35178581,113140.0,113130.0,0.54421047]
[1759237838730,1.44013261,113140.0,113130.0,0.1247246]
[1759237838912,1.44013261,113140.0,113130.0,0.54421047]
[1759237839422,1.44013261,113140.0,113130.0,0.93665215]
[1759237840229,1.43961791,113140.0,113130.0,0.51716628]
[1759237840418,1.35079111,113140.0,113130.0,0.71716628]
[1759237840618,1.35051111,113140.0,113130.0,0.71716628]
[1759237840813,0.93153994,113140.0,113130.0,0.51716628]
[1759237841014,0.93149994,113140.0,113130.0,0.51716628]
[1759237841332,0.11457994,113140.0,113130.0,0.71716628]
[1759237841518,0.93141994,113140.0,113130.0,0.71716628]
[1759237842520,0.11457994,113140.0,113130.0,0.51716628]
[1759237842832,0.93121994,113140.0,113130.0,0.51716628]
[1759237843219,0.93121994,113140.0,113130.0,1.13613745]
[1759237844340,1.35019111,113140.0,113130.0,1.13613745]
[1759237845127,0.93121994,113140.0,113130.0,1.13613745]
[1759237845429,1.35019111,113140.0,113130.0,1.1837336]
[1759237845927,0.93121994,113140.0,113130.0,1.1837336]
[1759237846128,1.01956674,113140.0,113130.0,1.1837336]
[1759237846330,1.01956674,113140.0,113130.0,1.15209192]
[1759237846524,0.11457994,113140.0,113130.0,1.15209192]
[1759237846725,0.93077994,113140.0,113130.0,1.15209192]
[1759237847428,0.11457994,113140.0,113130.0,1.15209192]
[1759237847629,0.93077994,113140.0,113130.0,1.15209192]
[1759237848124,0.11457994,113140.0,113130.0,1.15209192]
[1759237848329,0.93049994,113140.0,113130.0,1.15209192]
[1759237848628,0.09171994,113140.0,113130.0,1.15209192]
[1759237848834,1.34347216,113150.0,113140.0,0.0883467]
[1759237849026,0.5030374,113170.0,113160.0,0.03625]
[1759237849226,0.5030374,113170.0,113160.0,0.0679972]
[1759237849227,1.77667133,113170.0,113160.0,0.0679972]
[1759237849731,1.79771627,113170.0,113160.0,0.0679972]
[1759237850629,1.79771627,113170.0,113160.0,0.1563283]
[1759237851627,0.98191627,113170.0,113160.0,0.1563283]
[1759237851831,0.9294573,113170.0,113160.0,0.57529947]
[1759237852037,0.1138173,113170.0,113160.0,0.57529947]
[1759237852236,0.9294573,113170.0,113160.0,0.57529947]
[1759237852534,0.9294573,113170.0,113160.0,0.2039491]
[1759237852727,0.1138173,113170.0,113160.0,0.1563283]
[1759237853033,1.34838847,113170.0,113160.0,0.1563283]
[1759237853334,0.9294173,113170.0,113160.0,0.1563283]
[1759237853634,0.9294173,113170.0,113160.0,0.57529947]
[1759237853835,0.9294173,113170.0,113160.0,0.62292027]
[1759237854128,0.9292573,113170.0,113160.0,0.62292027]
[1759237854333,0.9292573,113170.0,113160.0,0.57529947]
[1759237854334,0.1138173,113170.0,113160.0,0.57529947]
[1759237856026,0.1138173,113170.0,113160.0,0.1563283]
[1759237856540,0.53278847,113170.0,113160.0,0.5647491]
[1759237857342,0.53278847,113170.0,113160.0,0.5171283]
[1759237857528,0.1138173,113170.0,113160.0,0.5647491]
[1759237857832,1.35262847,113170.0,113160.0,0.1563283]
[1759237858038,1.35262847,113170.0,113160.0,0.5171283]
[1759237859037,1.44095167,113170.0,113160.0,0.0679972]
[1759237859233,1.44095167,113170.0,113160.0,0.1426382]
[1759237859532,1.44095167,113170.0,113160.0,0.1430382]
[1759237860031,1.44095167,113170.0,113160.0,0.1567282]
[1759237862838,1.44095167,113170.0,113160.0,0.124981]
[1759237863935,1.80175167,113170.0,113160.0,0.088731]
[1759237864134,0.1104917,113160.0,113150.0,0.5647508]
[1759237864334,0.44113117,113160.0,113150.0,0.51793]
[1759237864531,0.84156,113160.0,113150.0,0.51713]
[1759237864727,1.26053117,113160.0,113150.0,0.51713]
[1759237864932,0.44113117,113160.0,113150.0,0.51753]
[1759237865132,0.02216,113160.0,113150.0,0.98412197]
[1759237865337,0.9337773,113170.0,113160.0,0.1245809]
[1759237865539,1.35274847,113170.0,113160.0,0.1245809]
[1759237866442,1.35294847,113170.0,113160.0,0.1245809]
[1759237866636,1.35294847,113170.0,113160.0,0.1563281]
[1759237868844,0.53278847,113170.0,113160.0,0.1563281]
[1759237869266,1.35302847,113170.0,113160.0,0.1563281]
[1759237869439,0.53278847,113170.0,113160.0,0.1563281]
[1759237869645,1.35282847,113170.0,113160.0,0.1563281]
[1759237870038,1.35282847,113170.0,113160.0,0.5171281]
[1759237871247,0.53278847,113170.0,113160.0,0.5647489]
[1759237871440,1.35254847,113170.0,113160.0,0.5647489]
[1759237871947,0.53278847,113170.0,113160.0,0.5647489]
[1759237872146,1.35254847,113170.0,113160.0,0.5647489]
[1759237872446,0.53278847,113170.0,113160.0,0.5647489]
[1759237872647,1.35238847,113170.0,113160.0,0.5647489]
[1759237872849,1.35238847,113170.0,113160.0,0.5330017]
[1759237873848,0.9331373,113170.0,113160.0,0.95197287]
[1759237874146,0.9331373,113170.0,113160.0,0.5330017]
[1759237876148,0.9329373,113170.0,113160.0,0.5330017]
[1759237876446,0.9327373,113170.0,113160.0,0.5330017]
[1759237877150,0.9327373,113170.0,113160.0,0.4853809]
[1759237878243,0.9327373,113170.0,113160.0,0.54896371]
[1759237878747,1.35170847,113170.0,113160.0,0.54896371]
[1759237878946,0.9327373,113170.0,113160.0,0.54896371]
[1759237880352,0.1138173,113170.0,113160.0,0.54896371]
[1759237880552,1.35166847,113170.0,113160.0,0.54896371]
[1759237883250,0.53278847,113170.0,113160.0,0.54896371]
[1759237883449,1.35138847,113170.0,113160.0,0.54896371]
[1759237883756,0.1138173,113170.0,113160.0,0.54896371]
[1759237883957,1.35102847,113170.0,113160.0,0.54896371]
[1759237884656,0.53278847,113170.0,113160.0,0.54896371]
[1759237884955,1.35086847,113170.0,113160.0,0.54896371]
[1759237885151,0.53278847,113170.0,113160.0,0.54896371]
[1759237885357,1.35086847,113170.0,113160.0,0.54896371]
[1759237885559,1.35094847,113170.0,113160.0,0.54896371]
[1759237885757,0.1138173,113170.0,113160.0,0.54896371]
[1759237885950,0.9319773,113170.0,113160.0,0.54896371]
[1759237887358,0.9323773,113170.0,113160.0,0.54896371]
[1759237888858,0.9323773,113170.0,113160.0,0.96793488]
[1759237890258,0.1138173,113170.0,113160.0,0.96793488]
[1759237891056,0.1138173,113170.0,113160.0,0.90435207]
[1759237896160,0.0916573,113170.0,113160.0,0.90435207]
[1759237896463,1.25844117,113180.0,113170.0,0.1240549]
[1759237896653,1.25844117,113180.0,113170.0,0.54843571]
[1759237896858,0.02231,113180.0,113170.0,0.96740688]
[1759237897354,0.90819264,113180.0,113170.0,0.96740688]
[1759237897564,0.83931,113180.0,113170.0,0.96740688]
[1759237897962,0.02231,113180.0,113170.0,0.96740688]
[1759237899259,1.6395624,113190.0,113180.0,0.124047]
[1759237899464,1.6581179,113190.0,113180.0,0.20351435]
[1759237899766,1.23914673,113190.0,113180.0,0.17172741]
[1759237899961,1.6581179,113190.0,113180.0,0.17172741]
[1759237900360,1.65777871,113190.0,113180.0,0.17172741]
[1759237901067,1.72994654,113190.0,113180.0,0.17172741]
[1759237902169,0.91326654,113190.0,113180.0,0.59035939]
[1759237902364,1.72946654,113190.0,113180.0,0.59035939]
[1759237904365,0.91326654,113190.0,113180.0,0.59035939]
[1759237904564,1.72926654,113190.0,113180.0,0.59035939]
[1759237904763,0.55246654,113190.0,113180.0,0.59035939]
[1759237904962,1.36834654,113190.0,113180.0,0.59035939]
[1759237905158,1.36834654,113190.0,113180.0,0.96705979]
[1759237906465,1.78697852,113190.0,113180.0,0.09931081]
[1759237906672,2.63608782,113190.0,113180.0,0.16772994]
[1759237907062,2.63608782,113190.0,113180.0,0.16812994]
[1759237907770,2.63608782,113190.0,113180.0,0.12048431]
[1759237908166,2.63608782,113190.0,113180.0,0.12008431]
[1759237908365,2.63608782,113190.0,113180.0,0.12048431]
[1759237909270,2.63608782,113190.0,113180.0,0.03216721]
[1759237909570,2.63608782,113190.0,113180.0,0.12048341]
[1759237910671,2.63608782,113190.0,113180.0,0.03216721]
[1759237912659,2.63608782,113190.0,113180.0,0.0004]
[1759237914161,2.63608782,113190.0,113170.0,0.12088631]
[1759237914162,0.0883171,113180.0,113170.0,0.03256721]
[1759237914367,2.13608304,113180.0,113170.0,0.0008]
[1759237914670,0.1110949,113170.0,113160.0,0.03176721]
[1759237914866,2.12395886,113170.0,113160.0,0.03176721]
[1759237915273,2.54432635,113170.0,113160.0,0.03216721]
[1759237915570,0.1214825,113160.0,113150.0,0.16774764]
[1759237915767,1.31954646,113160.0,113150.0,0.16774764]
[1759237915972,1.31954646,113160.0,113150.0,0.16854764]
[1759237916675,1.31954646,113160.0,113150.0,0.16774764]
[1759237916874,1.31954646,113160.0,113150.0,0.16814764]
[1759237917286,1.73817844,113160.0,113150.0,0.03216721]
[1759237917475,1.31954646,113160.0,113150.0,0.03216721]
[1759237917674,1.31954646,113160.0,113150.0,0.03176721]
[1759237917971,1.31954646,113160.0,113150.0,0.03216721]
[1759237918577,1.73817844,113160.0,113150.0,0.03216721]
[1759237918777,2.55265844,113160.0,113150.0,0.03216721]
[1759237919176,2.95265844,113160.0,113140.0,0.07941284]
[1759237919474,1.30917456,113150.0,113140.0,0.12011501]
[1759237919676,1.30917456,113150.0,113140.0,0.03256721]
[1759237919869,1.30917456,113150.0,113140.0,0.12091561]
[1759237920071,1.30917456,113150.0,113140.0,0.12011561]
[1759237920072,2.12365456,113150.0,113140.0,0.12011561]
[1759237920273,2.12365456,113150.0,113140.0,0.12051561]
[1759237920572,2.12369456,113150.0,113140.0,0.12051561]
[1759237920769,2.12369456,113150.0,113140.0,0.03216721]
[1759237921579,0.1194183,113140.0,113130.0,0.16776874]
[1759237921876,1.31748226,113140.0,113130.0,0.16856874]
[1759237922083,2.13200226,113140.0,113130.0,0.19128874]
[1759237922376,1.31748226,113140.0,113130.0,0.08021284]
[1759237922570,0.1111259,113130.0,113120.0,0.20377063]
[1759237922766,0.59963901,113130.0,113120.0,0.17200342]
[1759237922973,1.41415901,113130.0,113120.0,0.17280342]
[1759237923576,1.43151194,113130.0,113120.0,0.17280342]
[1759237923875,1.85018392,113130.0,113120.0,0.17280342]
[1759237924079,1.43155194,113130.0,113120.0,0.17280342]
[1759237925280,1.43155194,113130.0,113120.0,0.20448785]
[1759237925778,1.85018392,113130.0,113120.0,0.16857785]
[1759237925981,2.21098392,113130.0,113120.0,0.08021715]
[1759237926180,2.61098392,113130.0,113120.0,0.03177152]
[1759237926372,2.61098392,113130.0,113120.0,0.00048709]
[1759237926679,1.79642392,113130.0,113120.0,8.709e-05]
[1759237926878,2.61102392,113130.0,113120.0,8.709e-05]
[1759237927075,2.61102392,113130.0,113120.0,0.00048709]
[1759237927478,2.61102392,113130.0,113120.0,8.709e-05]
[1759237927673,2.63128204,113130.0,113120.0,0.00048709]
[1759237927881,0.02277,113110.0,113100.0,0.18089396]
[1759237928079,0.94840506,113110.0,113100.0,0.16770396]
[1759237928274,1.76408506,113110.0,113100.0,0.16770396]
[1759237928576,0.86003396,113110.0,113100.0,0.14277833]
[1759237928774,1.67571396,113110.0,113100.0,0.14277833]
[1759237928977,0.44148907,113110.0,113100.0,0.14277833]
[1759237929179,1.25708907,113110.0,113100.0,0.14277833]
[1759237929383,0.83837709,113110.0,113100.0,1.75403229]
[1759237929585,8.709e-05,113110.0,113100.0,1.72234786]
[1759237930575,0.41871907,113110.0,113100.0,1.30371588]
[1759237931382,0.41871907,113110.0,113100.0,1.33533686]
[1759237931579,0.44148907,113110.0,113100.0,0.91670488]
[1759237931775,0.44148907,113110.0,113100.0,0.51670488]
[1759237935084,0.44148907,113110.0,113100.0,0.15590488]
[1759237935588,0.52986017,113110.0,113100.0,0.15630488]
[1759237936088,0.94849215,113110.0,113100.0,0.06793098]
[1759237936281,0.94849215,113110.0,113100.0,0.03202098]
[1759237936586,0.94849215,113110.0,113100.0,0.03162098]
[1759237936786,0.111639,113100.0,113090.0,0.06689098]
[1759237937082,2.12522296,113100.0,113090.0,0.0008]
[1759237937287,2.12522296,113100.0,113090.0,0.0883869]
[1759237937678,2.13352296,113100.0,113090.0,0.0887869]
[1759237938382,2.55215494,113100.0,113090.0,0.0887869]
[1759237938583,0.1112269,113090.0,113080.0,0.15472878]
[1759237938788,1.38183581,113090.0,113080.0,0.0883878]
[1759237938980,1.38183581,113090.0,113080.0,0.0891878]
[1759237939180,1.38183581,113090.0,113080.0,0.0883878]
[1759237939380,2.19723581,113090.0,113080.0,0.0883878]
[1759237939680,2.19723581,113090.0,113080.0,0.0887878]
[1759237940587,2.19727581,113090.0,113080.0,0.0887878]
[1759237941183,1.38183581,113090.0,113080.0,0.0887878]
[1759237941389,2.19691581,113090.0,113080.0,0.1103178]
[1759237941592,2.19695581,113090.0,113080.0,0.1103178]
[1759237943582,2.19675581,113090.0,113080.0,0.1103178]
[1759237944202,1.38183581,113090.0,113080.0,0.1103178]
[1759237944393,2.19679581,113090.0,113080.0,0.1103178]
[1759237944788,1.38183581,113090.0,113080.0,0.1103178]
[1759237944983,2.19679581,113090.0,113080.0,0.1103178]
[1759237945998,1.38183581,113090.0,113080.0,0.1103178]
[1759237946196,2.19679581,113090.0,113080.0,0.1103178]
[1759237946802,2.19679581,113090.0,113080.0,0.0887878]
[1759237947094,2.19679581,113090.0,113080.0,0.1103178]
[1759237947286,1.38183581,113090.0,113080.0,0.1103178]
[1759237947488,2.19683581,113090.0,113080.0,0.1103178]
[1759237949190,0.54457185,113090.0,113080.0,0.1241478]
[1759237949390,2.19683581,113090.0,113080.0,0.1241478]
[1759237953391,2.19687561,113090.0,113080.0,0.1241478]
[1759237954697,2.10848891,113090.0,113080.0,0.1241478]
[1759237956604,1.29344891,113090.0,113080.0,0.1241478]
[1759237956993,2.10848891,113090.0,113080.0,0.1241478]
[1759237957301,1.32905693,113090.0,113080.0,0.1241478]
[1759237957500,0.09538495,113090.0,113080.0,0.93520076]
[1759237957698,0.09538495,113090.0,113080.0,1.80147837]
[1759237957902,0.07254495,113090.0,113080.0,1.80147837]
[1759237958207,0.07254495,113090.0,113080.0,1.78579257]
[1759237958502,8.709e-05,113090.0,113080.0,1.78579257]
[1759237958701,0.46172562,113120.0,113110.0,0.1237311]
[1759237958903,0.02284,113120.0,113110.0,0.57408259]
[1759237959097,1.25651198,113120.0,113110.0,0.97408259]
[1759237959399,1.25651198,113120.0,113110.0,0.57408259]
[1759237960204,1.2569892,113120.0,113110.0,0.15545061]
[1759237962502,1.2569892,113120.0,113110.0,0.51625061]
[1759237962801,1.2569892,113120.0,113110.0,0.56382988]
[1759237964009,0.83788,113120.0,113110.0,0.98293908]
[1759237964307,0.92380406,113130.0,113120.0,0.1238034]
[1759237964503,0.92380406,113130.0,113120.0,0.98298824]
[1759237964909,0.10884406,113130.0,113120.0,0.98298824]
[1759237966811,0.10884406,113130.0,113120.0,0.51629977]
[1759237967013,0.61630846,113130.0,113120.0,0.51629977]
[1759237968214,0.19719926,113130.0,113120.0,0.51629977]
[1759237968404,0.52795326,113130.0,113120.0,0.51629977]
[1759237970616,0.61630876,113130.0,113120.0,0.51629977]
[1759237970809,0.52795326,113130.0,113120.0,0.51629977]
[1759237972018,0.61630876,113130.0,113120.0,0.51629977]
[1759237972314,0.52795326,113130.0,113120.0,0.51629977]
[1759237976415,0.52795326,113130.0,113120.0,0.15549977]
[1759237976619,0.52795326,113130.0,113120.0,0.15589977]
[1759237977824,0.52795326,113130.0,113120.0,0.15549977]
[1759237978027,1.34263326,113130.0,113120.0,0.15589977]
[1759237978427,0.52795326,113130.0,113120.0,0.15589977]
[1759237978727,1.34263326,113130.0,113120.0,0.15589977]
[1759237980331,0.52795326,113130.0,113120.0,0.15589977]
[1759237980636,2.62074796,113130.0,113120.0,0.0004]
[1759237981231,0.1099733,113120.0,113110.0,0.14161447]
[1759237981424,0.5290825,113120.0,113110.0,0.15630447]
[1759237982232,0.9246133,113120.0,113110.0,0.15630447]
[1759237982422,1.3437225,113120.0,113110.0,0.15630447]
[1759237982625,1.2553592,113120.0,113110.0,0.15630447]
[1759237983332,1.2553592,113120.0,113110.0,0.20388374]
[1759237983833,0.4407192,113120.0,113110.0,0.20388374]
[1759237984024,1.2553192,113120.0,113110.0,0.20388374]
[1759237984627,0.4407192,113120.0,113110.0,0.20388374]
[1759237984827,0.83621,113120.0,113110.0,0.95209657]
[1759237985335,0.92344406,113130.0,113120.0,0.1238032]
[1759237985528,1.34255326,113130.0,113120.0,0.17138273]
[1759237985733,1.34255326,113130.0,113120.0,0.53218273]
[1759237986125,1.43090866,113130.0,113120.0,0.53218273]
[1759237986325,1.34255326,113130.0,113120.0,0.53218273]
[1759237987436,1.34255326,113130.0,113120.0,0.54818401]
[1759237987639,0.52795326,113130.0,113120.0,0.54818401]
[1759237987831,1.34251326,113130.0,113120.0,0.96729321]
[1759237988128,0.92340406,113130.0,113120.0,0.54818401]
[1759237988329,0.10884406,113130.0,113120.0,0.54818401]
[1759237988534,0.92340406,113130.0,113120.0,0.54818401]
[1759237988935,0.08723406,113130.0,113120.0,0.96729321]
[1759237989122,0.7799092,113150.0,113130.0,0.0883554]
[1759237989123,0.78528,113140.0,113130.0,0.0883554]
[1759237989324,0.83617,113140.0,113130.0,0.60648541]
[1759237990336,0.90655378,113140.0,113130.0,0.60648541]
[1759237992332,0.09199378,113140.0,113130.0,0.60648541]
[1759237992535,0.10735764,113140.0,113130.0,0.96728541]
[1759237993233,0.10735764,113140.0,113130.0,2.18176541]
[1759237993437,0.07038378,113140.0,113130.0,1.36728541]
[1759237993638,0.81448,113150.0,113130.0,2.18176541]
[1759237993938,0.83655,113150.0,113140.0,0.59119072]
[1759237994437,0.83655,113150.0,113140.0,0.17208152]
[1759237995531,1.2556592,113150.0,113140.0,0.17208152]
[1759237995731,1.32593078,113150.0,113140.0,0.17208152]
[1759237996935,0.90682158,113150.0,113140.0,0.17208152]
[1759237997139,1.34103472,113150.0,113140.0,0.17208152]
[1759238001143,0.10744552,113150.0,113140.0,0.59119072]
[1759238001442,0.10744552,113150.0,113140.0,0.95199072]
[1759238001639,0.10744552,113150.0,113140.0,0.53288152]
[1759238001839,0.10744552,113150.0,113140.0,0.95199072]
[1759238002645,0.10744552,113150.0,113140.0,0.96792771]
[1759238002646,0.07027158,113150.0,113140.0,0.96792771]
[1759238002831,0.81428,113160.0,113140.0,0.96792771]
[1759238003142,0.0219,113150.0,113140.0,1.78220771]
[1759238003340,0.0219,113150.0,113140.0,0.96792771]
[1759238003538,0.0219,113150.0,113140.0,0.53281427]
[1759238003539,0.4410092,113150.0,113140.0,0.53281427]
[1759238004544,0.5117683,113150.0,113140.0,0.53321427]
[1759238009054,0.9200683,113150.0,113140.0,0.16763537]
[1759238009267,0.9200683,113150.0,113130.0,0.07928767]
[1759238009268,0.1102479,113140.0,113130.0,0.07928767]
[1759238009452,1.7043171,113140.0,113130.0,0.0325111]
[1759238009652,1.7043171,113140.0,113130.0,0.0317111]
[1759238009853,1.7043171,113140.0,113130.0,0.1200668]
[1759238010053,1.7043171,113140.0,113130.0,0.1204668]
[1759238010454,1.6159692,113140.0,113130.0,0.1204668]
[1759238010759,2.1043169,113140.0,113130.0,0.0887557]
[1759238010950,2.0159292,113140.0,113130.0,0.0887557]
[1759238011857,1.2018092,113140.0,113130.0,0.0887557]
[1759238012242,1.59682,113140.0,113130.0,0.1253957]
[1759238012448,1.6551292,113140.0,113130.0,0.1571068]
[1759238012649,1.6551292,113140.0,113130.0,0.59208147]
[1759238012650,0.0219,113140.0,113130.0,0.59208147]
[1759238012944,0.83606,113140.0,113130.0,0.95288147]
[1759238013152,0.0219,113140.0,113130.0,0.95288147]
[1759238013750,0.83606,113140.0,113130.0,0.95288147]
[1759238013948,0.83606,113140.0,113130.0,0.9053049]
[1759238015554,0.0219,113140.0,113130.0,0.9053049]
[1759238020258,0.4408357,113140.0,113130.0,0.9051314]
[1759238022469,0.4408357,113140.0,113130.0,0.96871221]
[1759238022769,0.8597714,113140.0,113130.0,0.54977651]
[1759238022966,1.2205714,113140.0,113130.0,0.15233651]
[1759238023169,1.2205714,113140.0,113130.0,0.13600733]
[1759238023469,1.2205714,113140.0,113130.0,0.17250733]
[1759238024270,0.8597714,113140.0,113130.0,0.17250733]
[1759238028879,1.6737714,113140.0,113130.0,0.53330733]
[1759238029081,1.6737314,113140.0,113130.0,0.53330733]
[1759238030482,0.8597714,113140.0,113130.0,0.53330733]
[1759238030674,1.6737314,113140.0,113130.0,0.53330733]
[1759238032776,0.8597714,113140.0,113130.0,0.53330733]
[1759238033076,1.6736914,113140.0,113130.0,0.53330733]
[1759238033581,0.8597714,113140.0,113130.0,0.53330733]
[1759238033777,1.6736914,113140.0,113130.0,0.53330733]
[1759238035079,0.8597714,113140.0,113130.0,0.4856557]
[1759238035279,1.6736514,113140.0,113130.0,0.4495557]
[1759238035486,1.6736514,113140.0,113130.0,0.17251522]
[1759238036186,1.6736514,113140.0,113130.0,0.1248557]
[1759238039384,0.0219,113140.0,113130.0,0.4856557]
[1759238039682,1.6736114,113140.0,113130.0,0.4856557]
[1759238039886,0.8597714,113140.0,113130.0,0.4856557]
[1759238040185,1.6736114,113140.0,113130.0,0.4856557]
[1759238042084,1.6736114,113140.0,113130.0,0.1248557]
[1759238042284,1.6736114,113140.0,113130.0,0.18843651]
[1759238042788,1.6736114,113140.0,113130.0,0.17255292]
[1759238043188,0.83574,113140.0,113130.0,0.17255292]
[1759238043485,1.6736114,113140.0,113130.0,0.17255292]
[1759238046984,1.6734914,113140.0,113130.0,0.17255292]
[1759238047891,0.8597714,113140.0,113130.0,0.17255292]
[1759238048090,1.6734914,113140.0,113130.0,0.1248557]
[1759238052993,1.6734914,113140.0,113130.0,0.18843651]
[1759238056094,0.8597714,113140.0,113130.0,0.18843651]
[1759238056287,1.6733314,113140.0,113130.0,0.18843651]
[1759238058798,0.8597714,113140.0,113130.0,0.18843651]
[1759238058992,1.6733314,113140.0,113130.0,0.18843651]
[1759238059497,1.6732514,113140.0,113130.0,0.18843651]
[1759238061098,1.6732114,113140.0,113130.0,0.18843651]
[1759238061597,0.8597714,113140.0,113130.0,0.18843651]
[1759238061796,1.6732114,113140.0,113130.0,0.18843651]
[1759238062004,0.8597714,113140.0,113130.0,0.18843651]
[1759238062292,1.6732114,113140.0,113130.0,0.18843651]
[1759238062492,0.83534,113140.0,113130.0,0.18843651]
[1759238062693,0.8597714,113140.0,113130.0,0.18843651]
[1759238063097,1.6731714,113140.0,113130.0,0.18843651]
[1759238063295,0.0219,113140.0,113130.0,0.18843651]
[1759238063601,1.6731714,113140.0,113130.0,0.54923651]
[1759238063893,1.7615192,113140.0,113130.0,0.54923651]
[1759238067089,1.7615192,113140.0,113130.0,0.15233651]
[1759238067296,1.7615192,113140.0,113130.0,0.17357651]
[1759238067799,1.7615192,113140.0,113130.0,0.18720651]
[1759238068696,2.1223192,113140.0,113130.0,0.06398081]
[1759238068904,2.96116773,113140.0,113130.0,0.04813856]
[1759238069101,2.96116773,113140.0,113130.0,0.04773856]
[1759238069505,2.96116773,113140.0,113130.0,0.04813856]
[1759238069698,0.0883556,113130.0,113120.0,0.04773856]
[1759238070003,0.0883556,113130.0,113120.0,0.04853856]
[1759238070004,1.33996983,113130.0,113120.0,0.04853856]
[1759238070598,1.33996983,113130.0,113120.0,0.04773856]
[1759238071003,1.33996983,113130.0,113120.0,0.04813856]
[1759238071304,1.320057,113130.0,113120.0,0.04813856]
[1759238071695,1.320057,113130.0,113120.0,0.15774196]
[1759238072704,1.320057,113130.0,113120.0,0.06937856]
[1759238072901,1.720057,113130.0,113120.0,0.04813856]
[1759238073108,1.720057,113130.0,113110.0,0.04773856]
[1759238073109,0.1115034,113120.0,113110.0,0.04773856]
[1759238073405,2.5423505,113120.0,113110.0,0.04853856]
[1759238073602,2.56222623,113120.0,113110.0,0.0008]
[1759238073902,0.1115112,113110.0,113100.0,0.08362856]
[1759238074112,1.77543357,113110.0,113100.0,0.17200766]
[1759238074406,0.54325787,113110.0,113100.0,0.17120766]
[1759238074711,1.77543357,113110.0,113100.0,0.17160766]
[1759238075206,0.51302237,113110.0,113100.0,0.53240766]
[1759238075402,1.32622237,113110.0,113100.0,0.95134336]
[1759238075600,0.90732667,113110.0,113100.0,0.95134336]
[1759238075801,1.32626237,113110.0,113100.0,0.96718561]
[1759238076006,0.51302237,113110.0,113100.0,0.96718561]
[1759238076201,1.32626237,113110.0,113100.0,0.9036048]
[1759238076615,1.32626237,113110.0,113100.0,0.4846691]
[1759238076813,0.51302237,113110.0,113100.0,0.9036048]
[1759238077109,1.32626237,113110.0,113100.0,0.9036048]
[1759238077409,0.51302237,113110.0,113100.0,0.9036048]
[1759238077597,1.32626237,113110.0,113100.0,0.9036048]
[1759238077802,0.90732667,113110.0,113100.0,0.9036048]
[1759238078002,1.32626237,113110.0,113100.0,0.9036048]
[1759238078210,0.51302237,113110.0,113100.0,0.9036048]
[1759238078510,0.88414667,113110.0,113100.0,1.78612131]
[1759238078808,0.07094667,113110.0,113100.0,1.78612131]
[1759238079113,1.2552757,113120.0,113110.0,0.1232411]
[1759238079310,0.4420757,113120.0,113110.0,0.95058097]
[1759238079604,1.2552757,113120.0,113110.0,0.95058097]
[1759238080207,1.25543608,113120.0,113110.0,0.53164527]
[1759238081310,0.44223608,113120.0,113110.0,0.4840411]
[1759238081508,1.25539608,113120.0,113110.0,0.4840411]
[1759238082306,0.02314,113120.0,113110.0,0.90313718]
[1759238082709,0.8363,113120.0,113110.0,0.4840411]
[1759238084032,0.02314,113120.0,113110.0,0.4840411]
[1759238084212,0.8363,113120.0,113110.0,0.4840411]
[1759238085511,1.25539608,113120.0,113110.0,0.4840411]
[1759238085814,1.25539608,113120.0,113110.0,0.53165174]
[1759238088011,1.61619608,113120.0,113110.0,0.17085174]
[1759238088308,1.61619608,113120.0,113110.0,0.13598174]
[1759238088610,1.61619608,113120.0,113110.0,0.15716174]
[1759238089012,1.61619608,113120.0,113110.0,0.15756174]
[1759238090000,1.61619608,113120.0,113110.0,0.17133174]
[1759238090511,1.25539608,113120.0,113110.0,0.17133174]
[1759238090911,1.2759452,113120.0,113110.0,0.13638174]
[1759238091410,0.85684912,113120.0,113110.0,0.13638174]
[1759238091617,1.2759452,113120.0,113110.0,0.13638174]
[1759238093114,1.2759452,113120.0,113110.0,0.15756174]
[1759238093508,1.2757452,113120.0,113110.0,0.17133174]
[1759238095300,1.3641092,113120.0,113110.0,0.08296064]
[1759238095811,1.3641092,113120.0,113110.0,0.08256064]
[1759238096014,1.3641092,113120.0,113110.0,0.08296064]
[1759238098011,1.3641092,113120.0,113110.0,0.04801064]
[1759238098215,1.3640692,113120.0,113110.0,0.06879064]
[1759238098415,1.3640692,113120.0,113110.0,0.06919064]
[1759238098611,0.5511492,113120.0,113110.0,0.06919064]
[1759238098905,1.3640692,113120.0,113110.0,0.08296064]
[1759238099106,1.3640692,113120.0,113110.0,0.17133224]
[1759238099508,1.3640292,113120.0,113110.0,0.17133224]
[1759238099713,0.5511488,113120.0,113110.0,0.17133224]
[1759238099915,1.2756652,113120.0,113110.0,0.53213224]
[1759238100109,1.3640288,113120.0,113110.0,0.53213224]
[1759238100819,0.04368912,113120.0,113110.0,1.35122832]
[1759238101006,0.83342912,113120.0,113110.0,1.36719849]
[1759238101320,0.02054912,113120.0,113110.0,1.36719849]
[1759238101510,0.83338912,113120.0,113110.0,1.36719849]
[1759238102109,0.02054912,113120.0,113110.0,1.36719849]
[1759238102314,0.83338912,113120.0,113110.0,1.36719849]
[1759238102618,0.02054912,113120.0,113110.0,1.36719849]
[1759238104214,0.02054912,113120.0,113110.0,1.30361768]
[1759238104415,0.1095788,113140.0,113130.0,0.1233057]
[1759238104616,1.34147488,113140.0,113130.0,0.4841057]
[1759238104918,1.34147488,113140.0,113130.0,0.4841059]
[1759238105114,1.34147488,113140.0,113130.0,0.5476742]
[1759238105309,1.34143488,113140.0,113130.0,0.4841059]
[1759238106715,0.44032608,113140.0,113130.0,0.5476742]
[1759238107017,1.25308608,113140.0,113130.0,0.5476742]
[1759238107415,1.34143388,113140.0,113130.0,0.5476742]
[1759238108721,1.25308608,113140.0,113130.0,0.5476742]
[1759238109315,1.34143408,113140.0,113130.0,0.5476742]
[1759238109517,1.34143408,113140.0,113130.0,0.44337992]
[1759238109720,1.34143408,113140.0,113130.0,0.53173572]
[1759238110119,1.34143408,113140.0,113130.0,0.53213572]
[1759238117421,1.34143408,113140.0,113130.0,0.51836572]
[1759238117627,2.52133016,113140.0,113130.0,0.04802992]
[1759238117926,2.5412206,113140.0,113130.0,0.0004]
[1759238118428,0.1112458,113130.0,113120.0,0.13599102]